bitfinex-derivatives/quotes_BTCF0:USTF0_20241128
["timestamp","ask_amount","ask_price","bid_price","bid_amount"]
[1732752001563,0.3608,95890.0,95889.0,0.013]
[1732752003767,0.001,95890.0,95889.0,0.012]
[1732752003950,0.09455798,95890.0,95889.0,0.012]
[1732752004266,0.001,95890.0,95889.0,0.012]
[1732752006455,0.45534896,95890.0,95889.0,0.012]
[1732752006657,0.3618,95890.0,95889.0,0.012]
[1732752006869,0.48658662,95890.0,95889.0,0.012]
[1732752007459,0.3618,95890.0,95889.0,0.012]
[1732752009459,0.3618,95890.0,95889.0,0.011]
[1732752009655,0.001,95890.0,95889.0,0.011]
[1732752010055,0.12474177,95894.0,95889.0,0.004]
[1732752010353,0.0945641,95890.0,95889.0,0.01]
[1732752010563,0.001,95890.0,95889.0,0.02637154]
[1732752010959,0.09356522,95898.0,95889.0,0.02637154]
[1732752010960,0.09356522,95899.0,95889.0,0.28579125]
[1732752011263,0.01974116,95905.0,95889.0,0.28579125]
[1732752011264,0.09356522,95901.0,95898.0,0.3608]
[1732752011469,0.09354229,95900.0,95899.0,0.02614113]
[1732752011664,0.09354229,95904.0,95899.0,0.01637154]
[1732752011859,0.09354229,95909.0,95903.0,0.24945981]
[1732752012060,0.09354229,95911.0,95908.0,0.3608]
[1732752012363,0.09354229,95914.0,95909.0,0.03878469]
[1732752012663,0.09354229,95913.0,95910.0,0.24944169]
[1732752012857,0.09354229,95912.0,95909.0,0.24944169]
[1732752013057,0.3608,95922.0,95910.0,0.03878316]
[1732752013261,0.38020521,95922.0,95911.0,0.03878316]
[1732752013461,0.38020521,95922.0,95912.0,0.03878316]
[1732752013663,0.002,95914.0,95913.0,0.03875624]
[1732752013868,0.005,95914.0,95913.0,0.03875624]
[1732752014362,0.38520521,95922.0,95913.0,0.03875624]
[1732752014565,0.38720521,95922.0,95914.0,0.03875624]
[1732752014864,0.38720521,95922.0,95915.0,0.01691004]
[1732752014865,0.15736,95921.0,95915.0,0.01691004]
[1732752015070,0.15736,95921.0,95916.0,0.01691004]
[1732752015276,0.15736,95921.0,95917.0,0.01691004]
[1732752015456,0.15736,95921.0,95908.0,0.3608]
[1732752015457,0.0301,95920.0,95918.0,0.01091004]
[1732752015660,0.0301,95920.0,95908.0,0.3608]
[1732752015661,0.0301,95920.0,95919.0,0.00325616]
[1732752016263,0.50022,95920.0,95919.0,0.00325616]
[1732752017574,0.50622,95920.0,95919.0,0.00325616]
[1732752017773,0.50622,95920.0,95919.0,0.00425616]
[1732752017774,0.51522,95920.0,95919.0,0.00425616]
[1732752018469,0.86586901,95920.0,95919.0,0.00425616]
[1732752018772,0.86629302,95920.0,95888.0,0.24944169]
[1732752019075,0.09350666,95897.0,95887.0,0.24944169]
[1732752019276,0.31396666,95896.0,95886.0,0.24944169]
[1732752019464,0.25086666,95896.0,95886.0,0.24944169]
[1732752019671,0.09350666,95893.0,95883.0,0.24944169]
[1732752019861,0.45430666,95893.0,95886.0,0.24944169]
[1732752020067,0.3608,95893.0,95884.0,0.24944169]
[1732752020261,0.3608,95893.0,95873.0,0.0638]
[1732752020262,0.09350666,95889.0,95879.0,0.24944169]
[1732752020463,0.09350666,95889.0,95886.0,0.004]
[1732752021268,0.0625,95888.0,95886.0,0.011]
[1732752022279,0.0625,95888.0,95886.0,0.007]
[1732752023573,0.0625,95888.0,95874.0,0.24944169]
[1732752023769,0.0635,95888.0,95886.0,0.01]
[1732752024276,0.09345598,95887.0,95886.0,0.01]
[1732752024477,0.09345598,95887.0,95886.0,0.004]
[1732752024777,0.09445598,95888.0,95886.0,0.01]
[1732752025076,0.001,95888.0,95886.0,0.01]
[1732752025275,0.09344721,95887.0,95886.0,0.01]
[1732752025473,0.09344445,95887.0,95886.0,0.01]
[1732752025663,0.001,95888.0,95886.0,0.006]
[1732752025864,0.002,95888.0,95886.0,0.006]
[1732752026671,0.09343826,95887.0,95886.0,0.01]
[1732752026867,0.0934365,95887.0,95886.0,0.01]
[1732752027069,0.0934365,95887.0,95886.0,0.004]
[1732752027279,0.001,95887.0,95886.0,0.01]
[1732752027570,0.001,95887.0,95886.0,0.02309434]
[1732752027771,0.1584,95887.0,95886.0,0.01]
[1732752028869,0.1584,95887.0,95886.0,0.0231299]
[1732752029578,0.1584,95887.0,95886.0,0.0191299]
[1732752029776,0.1584,95887.0,95886.0,0.0231299]
[1732752029980,0.2518365,95887.0,95886.0,0.0231299]
[1732752030169,0.1584,95887.0,95886.0,0.0231299]
[1732752030569,0.25182332,95887.0,95886.0,0.004]
[1732752030771,0.09442332,95887.0,95886.0,0.004]
[1732752031074,0.15816,95887.0,95886.0,0.004]
[1732752032270,0.15816,95887.0,95875.0,0.052096]
[1732752032477,0.3608,95877.0,95875.0,0.052096]
[1732752033574,0.3608,95877.0,95875.0,0.059096]
[1732752033975,0.3618,95877.0,95875.0,0.060096]
[1732752035190,0.3618,95877.0,95875.0,0.053096]
[1732752035379,0.3628,95877.0,95875.0,0.060096]
[1732752036278,0.1572,95876.0,95875.0,0.060096]
[1732752037385,0.1572,95876.0,95875.0,0.008]
[1732752037386,0.47012,95876.0,95875.0,0.008]
[1732752037581,0.56443101,95876.0,95875.0,0.013]
[1732752037887,0.001,95876.0,95875.0,0.013]
[1732752038088,0.1582,95876.0,95875.0,0.065096]
[1732752038680,0.1572,95876.0,95875.0,0.052096]
[1732752038875,0.1592,95876.0,95875.0,0.065096]
[1732752039486,0.1592,95876.0,95875.0,0.06835357]
[1732752039683,0.1592,95876.0,95875.0,0.06835356]
[1732752039988,0.1582,95876.0,95875.0,0.06635356]
[1732752041279,0.25152562,95876.0,95875.0,0.06635356]
[1732752041683,0.1582,95876.0,95875.0,0.06635356]
[1732752041986,0.25147917,95876.0,95875.0,0.06635356]
[1732752042381,0.1582,95876.0,95875.0,0.063096]
[1732752042784,0.25149375,95876.0,95875.0,0.063096]
[1732752043385,0.25151679,95876.0,95875.0,0.063096]
[1732752043784,0.1582,95876.0,95875.0,0.063096]
[1732752044388,0.1572,95876.0,95875.0,0.061096]
[1732752045492,0.209295,95876.0,95875.0,0.003]
[1732752045787,0.209295,95876.0,95875.0,0.006]
[1732752046985,0.522215,95876.0,95875.0,0.006]
[1732752047193,0.50292,95876.0,95857.0,0.00156479]
[1732752047489,0.3608,95858.0,95857.0,0.00156479]
[1732752047684,0.61142266,95858.0,95857.0,0.00156479]
[1732752047880,0.570105,95858.0,95857.0,0.00156479]
[1732752048096,0.570105,95858.0,95857.0,0.05367079]
[1732752048391,0.518,95858.0,95857.0,0.05367079]
[1732752048889,0.519,95858.0,95857.0,0.05767079]
[1732752049089,0.519,95858.0,95857.0,0.06067079]
[1732752049490,0.519,95858.0,95857.0,0.059106]
[1732752051288,0.53820358,95858.0,95857.0,0.059106]
[1732752051890,0.17740358,95858.0,95857.0,0.059106]
[1732752052486,0.09442249,95858.0,95857.0,0.419906]
[1732752052686,0.001,95858.0,95857.0,0.66934769]
[1732752052886,0.001,95858.0,95857.0,0.66928562]
[1732752053093,0.001,95858.0,95857.0,0.419906]
[1732752053485,0.001,95858.0,95857.0,0.481206]
[1732752053686,0.001,95858.0,95857.0,0.73059975]
[1732752053885,0.001,95858.0,95857.0,0.73059853]
[1732752054292,0.001,95858.0,95857.0,0.49097899]
[1732752054491,0.17662779,95866.0,95865.0,0.052101]
[1732752054690,0.17662779,95866.0,95865.0,0.06187399]
[1732752055497,0.1572,95866.0,95865.0,0.06187399]
[1732752055705,0.1572,95866.0,95865.0,0.052101]
[1732752055998,0.1572,95866.0,95865.0,0.001]
[1732752056193,0.209301,95866.0,95865.0,0.001]
[1732752056496,0.1572,95866.0,95865.0,0.001]
[1732752056695,0.1572,95866.0,95864.0,0.052102]
[1732752056891,0.01987283,95867.0,95866.0,0.052101]
[1732752057096,0.1572,95873.0,95872.0,0.052098]
[1732752057597,0.38040464,95877.0,95873.0,0.052097]
[1732752057798,0.1572,95873.0,95872.0,0.052098]
[1732752058490,0.1592,95873.0,95872.0,0.052098]
[1732752058891,0.1572,95873.0,95872.0,0.052098]
[1732752059091,0.1592,95873.0,95872.0,0.052098]
[1732752059595,0.1602,95873.0,95872.0,0.052098]
[1732752060496,0.1582,95873.0,95872.0,0.052098]
[1732752060693,0.1592,95873.0,95872.0,0.052098]
[1732752061202,0.1582,95873.0,95872.0,0.052098]
[1732752061399,0.1622,95873.0,95872.0,0.052098]
[1732752062690,0.1632,95873.0,95872.0,0.052098]
[1732752063893,0.1592,95873.0,95872.0,0.052098]
[1732752064200,0.1602,95873.0,95872.0,0.052098]
[1732752064795,0.003,95873.0,95872.0,0.052098]
[1732752066100,0.006,95873.0,95872.0,0.23936167]
[1732752066302,0.006,95873.0,95872.0,0.052098]
[1732752066500,0.01448397,95873.0,95872.0,0.052098]
[1732752066697,0.01048397,95873.0,95872.0,0.052098]
[1732752067009,0.01048397,95873.0,95872.0,0.053098]
[1732752067406,0.01048397,95873.0,95872.0,0.24035873]
[1732752067613,0.00848397,95873.0,95872.0,0.24035873]
[1732752068104,0.00848397,95873.0,95872.0,0.053098]
[1732752068599,0.00848397,95873.0,95872.0,0.052098]
[1732752068804,0.00848397,95873.0,95868.0,0.18726073]
[1732752069104,0.052104,95861.0,95859.0,0.18726073]
[1732752069302,0.3608,95869.0,95857.0,0.00056]
[1732752069303,0.052105,95859.0,95857.0,0.00056]
[1732752069498,0.00848397,95858.0,95856.0,0.052106]
[1732752069694,0.157,95863.0,95853.0,0.18726073]
[1732752069996,0.0934557,95857.0,95854.0,0.19703488]
[1732752070197,0.0934557,95857.0,95856.0,0.052106]
[1732752070393,0.052103,95862.0,95857.0,0.052106]
[1732752070899,0.33370746,95861.0,95857.0,0.23936673]
[1732752071102,0.12460346,95859.0,95857.0,0.052106]
[1732752071299,0.157,95858.0,95857.0,0.052106]
[1732752071701,0.209105,95858.0,95857.0,0.052106]
[1732752072305,0.33370846,95858.0,95857.0,0.052106]
[1732752072603,0.33370846,95858.0,95857.0,0.055106]
[1732752072800,0.33370846,95858.0,95857.0,0.005]
[1732752072997,0.209105,95858.0,95857.0,0.005]
[1732752073706,0.22892148,95858.0,95857.0,0.005]
[1732752074001,0.22892148,95858.0,95850.0,0.18726073]
[1732752074201,0.05211,95850.0,95849.0,0.18726073]
[1732752074406,0.052111,95848.0,95845.0,0.18726073]
[1732752074601,0.052112,95846.0,95844.0,0.18726073]
[1732752075105,0.0609736,95845.0,95843.0,0.052113]
[1732752075297,0.052114,95841.0,95839.0,0.18726073]
[1732752075497,0.3696606,95840.0,95839.0,0.18726073]
[1732752075695,0.052117,95838.0,95832.0,0.23937973]
[1732752075898,0.09340105,95834.0,95832.0,0.052119]
[1732752076201,0.10227045,95833.0,95832.0,0.052119]
[1732752076400,0.00885639,95833.0,95832.0,0.052119]
[1732752077405,0.00884801,95833.0,95832.0,0.052119]
[1732752077608,0.01484801,95833.0,95832.0,0.052119]
[1732752079502,0.00884801,95833.0,95832.0,0.052119]
[1732752080101,0.00984801,95833.0,95832.0,0.365159]
[1732752080509,0.00984801,95833.0,95832.0,0.55241973]
[1732752080698,0.00984801,95833.0,95832.0,0.052119]
[1732752080902,0.00984801,95833.0,95832.0,0.365159]
[1732752081109,0.00984801,95833.0,95832.0,0.38449366]
[1732752081302,0.00966518,95833.0,95832.0,0.38449366]
[1732752081499,0.001,95833.0,95832.0,0.38449366]
[1732752082908,0.003,95833.0,95832.0,0.38449366]
[1732752083601,0.001,95833.0,95832.0,0.38449366]
[1732752083807,0.052111,95847.0,95832.0,0.38749366]
[1732752084002,0.0194124,95848.0,95832.0,0.38749366]
[1732752084003,0.00866315,95846.0,95837.0,0.3608]
[1732752084207,0.00866315,95845.0,95837.0,0.3608]
[1732752084504,0.15704,95850.0,95838.0,0.052115]
[1732752084505,0.052116,95839.0,95838.0,0.052115]
[1732752084700,0.06077915,95839.0,95838.0,0.052115]
[1732752085015,0.00866315,95839.0,95832.0,0.002]
[1732752085305,0.052119,95833.0,95832.0,0.002]
[1732752085510,0.06078215,95833.0,95832.0,0.002]
[1732752086012,0.07511698,95833.0,95832.0,0.002]
[1732752086506,0.052122,95828.0,95821.0,0.052125]
[1732752086814,0.052125,95822.0,95821.0,0.052125]
[1732752087000,0.06078815,95822.0,95821.0,0.052125]
[1732752087512,0.00866315,95822.0,95821.0,0.052125]
[1732752087706,0.02533483,95833.0,95824.0,0.052124]
[1732752087707,0.052123,95826.0,95824.0,0.052124]
[1732752087909,0.00929549,95825.0,95824.0,0.052124]
[1732752089709,0.01329549,95825.0,95824.0,0.052124]
[1732752089911,0.01529549,95825.0,95824.0,0.052124]
[1732752090304,0.01129549,95825.0,95824.0,0.365204]
[1732752090704,0.00929549,95825.0,95824.0,0.365204]
[1732752090912,0.00929549,95825.0,95824.0,0.367204]
[1732752091813,0.00156575,95846.0,95824.0,0.367204]
[1732752091814,0.00156575,95846.0,95845.0,0.052112]
[1732752092016,0.00156575,95846.0,95845.0,0.412912]
[1732752093314,0.01056575,95846.0,95845.0,0.412912]
[1732752093910,0.00356575,95846.0,95845.0,0.412912]
[1732752094217,0.00856575,95846.0,95845.0,0.413912]
[1732752095515,0.00656575,95846.0,95845.0,0.413912]
[1732752095711,0.01256575,95846.0,95845.0,0.413912]
[1732752096216,0.00156575,95846.0,95845.0,0.412912]
[1732752096409,0.00456575,95846.0,95845.0,0.412912]
[1732752097218,0.00456575,95846.0,95837.0,0.18681919]
[1732752097414,0.12498237,95845.0,95840.0,0.052115]
[1732752097609,0.09341406,95843.0,95840.0,0.052115]
[1732752097808,0.1087919,95842.0,95840.0,0.052115]
[1732752098012,0.01537784,95841.0,95840.0,0.052115]
[1732752098716,0.08386236,95841.0,95840.0,0.052115]
[1732752099123,0.052119,95833.0,95832.0,0.18681919]
[1732752099322,0.052119,95833.0,95827.0,0.24909225]
[1732752099323,0.26571497,95833.0,95827.0,0.18681919]
[1732752099511,0.09337785,95829.0,95823.0,0.23894319]
[1732752099718,0.09337785,95826.0,95823.0,0.052124]
[1732752099916,0.10891497,95826.0,95823.0,0.052124]
[1732752100217,0.052123,95826.0,95824.0,0.052124]
[1732752100421,0.052123,95826.0,95821.0,0.18681919]
[1732752100716,0.052123,95826.0,95825.0,0.05368818]
[1732752100926,0.12459878,95830.0,95826.0,0.31308]
[1732752101111,0.09339772,95843.0,95842.0,0.052114]
[1732752101316,0.00156575,95846.0,95845.0,0.052112]
[1732752104023,0.01750751,95846.0,95845.0,0.052112]
[1732752104220,0.02150751,95846.0,95845.0,0.052112]
[1732752104625,0.06861951,95846.0,95845.0,0.052112]
[1732752104919,0.01650751,95846.0,95845.0,0.052112]
[1732752105116,0.01650751,95846.0,95845.0,0.23924583]
[1732752105311,0.01650751,95846.0,95845.0,0.052112]
[1732752105711,0.12916741,95846.0,95845.0,0.052112]
[1732752105912,0.10988041,95846.0,95845.0,0.052112]
[1732752106113,0.01650751,95846.0,95845.0,0.052112]
[1732752106316,0.10988041,95846.0,95845.0,0.052112]
[1732752106717,0.10688041,95846.0,95845.0,0.052112]
[1732752106926,0.01350751,95846.0,95845.0,0.052112]
[1732752107120,0.10488041,95846.0,95845.0,0.052112]
[1732752107325,0.01450751,95846.0,95845.0,0.052112]
[1732752107620,0.01550751,95846.0,95845.0,0.052112]
[1732752108019,0.01250751,95846.0,95845.0,0.052112]
[1732752108221,0.00756575,95846.0,95845.0,0.052112]
[1732752108416,0.0145914,95846.0,95845.0,0.052112]
[1732752108620,0.0165914,95846.0,95845.0,0.052112]
[1732752111131,0.0165914,95846.0,95845.0,0.2392264]
[1732752111424,0.0165914,95846.0,95845.0,0.052112]
[1732752111625,0.01502565,95846.0,95845.0,0.052112]
[1732752111825,0.12302844,95846.0,95845.0,0.1871144]
[1732752112127,0.052112,95845.0,95842.0,0.052754]
[1732752112323,0.07576854,95844.0,95842.0,0.052114]
[1732752112524,0.02365554,95843.0,95842.0,0.052114]
[1732752112920,0.02365554,95843.0,95842.0,0.412914]
[1732752113416,0.052113,95844.0,95843.0,0.052113]
[1732752113631,0.07694062,95844.0,95843.0,0.052113]
[1732752113818,0.09634481,95844.0,95843.0,0.052113]
[1732752114423,0.02895327,95844.0,95843.0,0.052113]
[1732752114618,0.03495327,95844.0,95843.0,0.052113]
[1732752114824,0.01515978,95844.0,95843.0,0.052113]
[1732752115328,0.01715978,95844.0,95843.0,0.052113]
[1732752115527,0.01715978,95844.0,95839.0,0.052115]
[1732752115528,0.052116,95840.0,95839.0,0.052115]
[1732752115730,0.06127578,95840.0,95839.0,0.052115]
[1732752115923,0.00915978,95840.0,95828.0,0.30162138]
[1732752116125,0.052121,95829.0,95828.0,0.052121]
[1732752116327,0.052123,95825.0,95822.0,0.3608]
[1732752116522,0.06128378,95824.0,95823.0,0.052124]
[1732752116731,0.00915978,95824.0,95823.0,0.052124]
[1732752117732,0.00915978,95824.0,95823.0,0.055124]
[1732752117933,0.00981037,95824.0,95823.0,0.057124]
[1732752120132,0.00981037,95824.0,95823.0,0.370204]
[1732752121131,0.00981037,95824.0,95823.0,0.37997997]
[1732752121333,0.09335042,95838.0,95836.0,0.052117]
[1732752121637,0.1568,95844.0,95840.0,0.052115]
[1732752121638,0.09335042,95841.0,95840.0,0.052115]
[1732752121826,0.09335683,95847.0,95837.0,0.7862]
[1732752122030,0.15664,95861.0,95837.0,0.7862]
[1732752122031,0.09335683,95849.0,95848.0,0.052111]
[1732752122222,0.12459878,95852.0,95848.0,0.00977378]
[1732752122428,0.12459878,95852.0,95851.0,0.052109]
[1732752122630,0.052107,95854.0,95853.0,0.052108]
[1732752123328,0.01445193,95856.0,95855.0,0.052107]
[1732752123531,0.052106,95856.0,95855.0,0.412907]
[1732752125030,0.18460168,95856.0,95855.0,0.412907]
[1732752125234,0.060106,95856.0,95855.0,0.412907]
[1732752126445,0.060106,95856.0,95855.0,0.3608]
[1732752126738,0.065106,95856.0,95855.0,0.412907]
[1732752127146,0.07933821,95856.0,95855.0,0.412907]
[1732752127434,0.065106,95856.0,95855.0,0.412907]
[1732752128034,0.013,95856.0,95855.0,0.412907]
[1732752128431,0.13747013,95856.0,95855.0,0.412907]
[1732752128635,0.013,95856.0,95855.0,0.412907]
[1732752129032,0.065106,95856.0,95855.0,0.412907]
[1732752129238,0.18957613,95856.0,95855.0,0.412907]
[1732752129936,0.18957613,95856.0,95855.0,0.3608]
[1732752129937,0.065106,95856.0,95855.0,0.3608]
[1732752131232,0.065106,95856.0,95855.0,0.412907]
[1732752131426,0.065106,95856.0,95855.0,0.3608]
[1732752131733,0.0794805,95856.0,95855.0,0.3608]
[1732752132939,0.0794805,95856.0,95855.0,0.412907]
[1732752133339,0.065106,95856.0,95855.0,0.412907]
[1732752133534,0.07424354,95856.0,95855.0,0.412907]
[1732752134132,0.065106,95856.0,95855.0,0.412907]
[1732752134742,0.08868884,95856.0,95855.0,0.412907]
[1732752135431,0.07417632,95856.0,95855.0,0.412907]
[1732752137141,0.07417632,95856.0,95855.0,0.3608]
[1732752137739,0.07417632,95856.0,95855.0,0.412907]
[1732752139643,0.08864674,95856.0,95855.0,0.412907]
[1732752140048,0.0886204,95856.0,95855.0,0.3608]
[1732752140544,0.0886204,95856.0,95855.0,0.412907]
[1732752140749,0.0365144,95856.0,95855.0,0.412907]
[1732752141047,0.0365144,95856.0,95855.0,1.086667]
[1732752141048,0.022044,95856.0,95855.0,1.086667]
[1732752141247,0.06542661,95857.0,95856.0,0.052106]
[1732752141435,0.0144704,95867.0,95859.0,0.052105]
[1732752141638,0.15584444,95881.0,95874.0,0.052096]
[1732752141835,0.15584444,95885.0,95876.0,0.412895]
[1732752142043,0.0326,95897.0,95876.0,0.67228028]
[1732752142044,1e-08,95878.0,95876.0,0.67228028]
[1732752142239,1e-08,95878.0,95877.0,0.00977178]
[1732752142441,1e-08,95878.0,95877.0,0.32265178]
[1732752142835,1e-08,95878.0,95877.0,0.31288]
[1732752143146,1e-08,95878.0,95877.0,0.32275477]
[1732752143441,1e-08,95878.0,95877.0,0.00010423]
[1732752144542,0.00500001,95878.0,95877.0,0.00010423]
[1732752144942,0.01300001,95878.0,95877.0,0.00110423]
[1732752147346,0.01300001,95878.0,95877.0,0.37578423]
[1732752147844,0.01300001,95878.0,95877.0,0.53238423]
[1732752148441,0.01300001,95878.0,95877.0,0.37578423]
[1732752148640,0.01300001,95878.0,95877.0,0.54215467]
[1732752149568,0.01300001,95878.0,95877.0,0.53238423]
[1732752149845,0.01300001,95878.0,95877.0,0.22915491]
[1732752150041,0.01300001,95878.0,95877.0,0.19885491]
[1732752150248,0.01300001,95878.0,95877.0,0.04237491]
[1732752150544,0.01300001,95878.0,95877.0,0.03260423]
[1732752151441,0.01300001,95878.0,95877.0,0.04237533]
[1732752151647,0.00800001,95878.0,95877.0,0.03260423]
[1732752151843,0.01200001,95878.0,95877.0,0.04567037]
[1732752152044,0.01100001,95878.0,95877.0,0.04567037]
[1732752152938,0.01100001,95878.0,95877.0,0.04576604]
[1732752153750,0.01100001,95878.0,95877.0,0.35864604]
[1732752154140,0.01100001,95878.0,95877.0,0.3684169]
[1732752154655,0.0619,95902.0,95889.0,0.052088]
[1732752154656,0.01927291,95893.0,95889.0,0.052088]
[1732752154955,0.0619,95902.0,95890.0,0.01316181]
[1732752155139,0.052076,95913.0,95897.0,0.3608]
[1732752155446,0.15648,95908.0,95899.0,0.052083]
[1732752155849,0.208558,95908.0,95900.0,0.01394097]
[1732752156152,0.208558,95908.0,95899.0,0.052083]
[1732752156355,0.15648,95908.0,95900.0,0.01394102]
[1732752156548,0.15648,95908.0,95901.0,0.01394102]
[1732752156745,0.05208,95905.0,95899.0,0.052083]
[1732752157061,0.37991554,95909.0,95903.0,0.052081]
[1732752157247,0.53639554,95909.0,95904.0,0.00325648]
[1732752157446,0.052078,95908.0,95905.0,0.00325648]
[1732752157753,0.052079,95907.0,95906.0,0.00325648]
[1732752158452,0.052082,95900.0,95899.0,0.001]
[1732752158653,0.412882,95900.0,95899.0,0.001]
[1732752158956,0.725722,95900.0,95899.0,0.001]
[1732752159155,0.725722,95900.0,95887.0,0.3608]
[1732752159156,0.052089,95888.0,95887.0,0.3608]
[1732752159352,0.052089,95888.0,95887.0,0.37453893]
[1732752159955,0.052089,95888.0,95887.0,0.3608]
[1732752160946,0.3608,95890.0,95877.0,0.00010423]
[1732752161147,0.052094,95878.0,95877.0,0.00010423]
[1732752162652,0.055094,95878.0,95877.0,0.00010423]
[1732752163445,0.055094,95878.0,95865.0,0.3608]
[1732752163649,0.052099,95870.0,95865.0,0.3608]
[1732752164855,0.060099,95870.0,95869.0,0.00256459]
[1732752165650,0.34552456,95870.0,95865.0,0.3608]
[1732752165855,0.052101,95866.0,95854.0,0.3608]
[1732752166053,0.052107,95855.0,95854.0,0.3608]
[1732752166260,0.052107,95855.0,95835.0,0.3608]
[1732752166261,0.052117,95836.0,95835.0,0.3608]
[1732752166452,0.052108,95854.0,95832.0,0.24910633]
[1732752166453,0.052118,95834.0,95832.0,0.24910633]
[1732752166653,0.052118,95834.0,95833.0,0.3608]
[1732752167059,0.15648,95838.0,95826.0,0.00156513]
[1732752167355,0.05212,95831.0,95826.0,0.00156513]
[1732752167751,0.052121,95830.0,95828.0,0.3608]
[1732752167960,0.001,95834.0,95826.0,0.00156513]
[1732752168156,0.052122,95827.0,95826.0,0.00156513]
[1732752168460,0.052122,95827.0,95826.0,0.00656513]
[1732752169454,0.052122,95827.0,95826.0,0.01456513]
[1732752170256,0.00253,95828.0,95827.0,0.052122]
[1732752171550,0.00353,95828.0,95827.0,0.059122]
[1732752172055,0.00353,95828.0,95827.0,0.377202]
[1732752173559,0.052112,95846.0,95827.0,0.377202]
[1732752173861,0.052112,95846.0,95844.0,0.052113]
[1732752174663,0.00110753,95845.0,95844.0,0.052113]
[1732752175056,0.00010753,95845.0,95844.0,0.052113]
[1732752175251,0.00110753,95845.0,95844.0,0.052113]
[1732752177758,0.00110753,95845.0,95836.0,0.052117]
[1732752177759,0.052117,95837.0,95836.0,0.052117]
[1732752178554,0.052119,95833.0,95832.0,0.3608]
[1732752178863,0.052121,95829.0,95828.0,0.052121]
[1732752179460,0.052121,95829.0,95826.0,0.00156513]
[1732752179461,0.052122,95827.0,95826.0,0.00156513]
[1732752181064,0.052122,95827.0,95826.0,0.00956513]
[1732752181065,0.053122,95827.0,95826.0,0.00956513]
[1732752181669,0.053122,95827.0,95826.0,0.01456513]
[1732752183463,0.053122,95827.0,95826.0,0.01782417]
[1732752184074,0.053122,95827.0,95826.0,0.03164865]
[1732752184465,0.053122,95827.0,95826.0,0.01782417]
[1732752184865,0.053122,95827.0,95826.0,0.01625904]
[1732752184866,0.38544348,95827.0,95826.0,0.01625904]
[1732752185064,0.44814348,95827.0,95826.0,0.01625904]
[1732752186365,0.052134,95805.0,95802.0,0.083735]
[1732752186671,0.052134,95805.0,95804.0,0.01384257]
[1732752187177,0.15748,95812.0,95802.0,0.083735]
[1732752187178,0.052135,95803.0,95802.0,0.083735]
[1732752187372,0.052135,95803.0,95802.0,0.01365331]
[1732752188173,0.052136,95801.0,95797.0,0.0311]
[1732752188377,0.001,95805.0,95774.0,0.01950389]
[1732752188378,0.4382,95803.0,95774.0,0.01950389]
[1732752188576,0.052139,95795.0,95775.0,0.0306]
[1732752188876,0.052147,95782.0,95775.0,0.0306]
[1732752189065,0.17912,95781.0,95775.0,0.0306]
[1732752189273,0.231268,95780.0,95775.0,0.0306]
[1732752189574,0.17912,95780.0,95762.0,0.412957]
[1732752189779,0.052153,95772.0,95762.0,0.412957]
[1732752190072,0.052153,95770.0,95762.0,0.412957]
[1732752190465,7.399e-05,95775.0,95762.0,0.3608]
[1732752190670,0.052156,95765.0,95757.0,0.05216]
[1732752190865,0.17912,95764.0,95760.0,0.052158]
[1732752191068,0.17912,95765.0,95761.0,5.556e-05]
[1732752191373,0.17912,95764.0,95762.0,0.054157]
[1732752191572,0.17912,95766.0,95765.0,0.052156]
[1732752191767,0.05222499,95775.0,95762.0,0.002]
[1732752191768,7.399e-05,95775.0,95762.0,0.002]
[1732752191961,7.399e-05,95775.0,95773.0,0.052151]
[1732752192164,7.399e-05,95775.0,95774.0,0.0331]
[1732752192774,7.399e-05,95775.0,95770.0,0.0318]
[1732752193164,0.17916,95774.0,95770.0,0.0318]
[1732752193364,0.17916,95774.0,95769.0,0.3608]
[1732752194269,7.399e-05,95775.0,95769.0,0.3608]
[1732752194572,0.18016,95774.0,95769.0,0.3608]
[1732752195368,0.18016,95774.0,95769.0,0.3628]
[1732752196069,0.17916,95773.0,95769.0,0.3628]
[1732752196273,0.17916,95773.0,95771.0,0.052152]
[1732752196574,0.001,95774.0,95771.0,0.052152]
[1732752196777,7.399e-05,95775.0,95769.0,0.003]
[1732752197165,0.3608,95771.0,95769.0,0.003]
[1732752197483,0.3608,95771.0,95769.0,0.001]
[1732752198074,0.3608,95771.0,95769.0,0.004]
[1732752198075,0.17916,95770.0,95769.0,0.004]
[1732752198872,0.17916,95770.0,95769.0,0.003]
[1732752199073,0.18772436,95770.0,95769.0,0.003]
[1732752199279,0.00856235,95770.0,95769.0,0.003]
[1732752200476,0.00856235,95770.0,95769.0,0.001]
[1732752200676,7.399e-05,95775.0,95774.0,0.052151]
[1732752200878,0.00056001,95792.0,95785.0,0.052145]
[1732752201077,0.00056001,95792.0,95774.0,0.67404]
[1732752201078,0.00056001,95792.0,95791.0,0.412941]
[1732752201378,0.00868693,95798.0,95793.0,0.05214]
[1732752201685,0.052128,95816.0,95792.0,0.31316]
[1732752201873,0.052128,95816.0,95789.0,0.1792]
[1732752201874,0.61764,95817.0,95816.0,0.052128]
[1732752202182,0.01441152,95817.0,95816.0,0.052128]
[1732752202375,0.01441152,95820.0,95818.0,0.052127]
[1732752202581,7.652e-05,95821.0,95820.0,0.052126]
[1732752204285,7.652e-05,95821.0,95820.0,0.416926]
[1732752204473,0.05368299,95837.0,95820.0,0.416926]
[1732752204474,0.03053687,95834.0,95828.0,0.052121]
[1732752204782,0.01769134,95837.0,95835.0,0.052118]
[1732752204966,0.01484611,95836.0,95835.0,0.052118]
[1732752205172,0.00156599,95837.0,95835.0,0.052118]
[1732752207476,0.00156599,95837.0,95835.0,0.057118]
[1732752208185,0.05368299,95837.0,95835.0,0.009]
[1732752208381,0.22660299,95837.0,95835.0,0.009]
[1732752208883,0.01484611,95836.0,95835.0,0.009]
[1732752209282,0.01444932,95836.0,95835.0,0.009]
[1732752209480,0.22660299,95837.0,95835.0,0.005]
[1732752209676,0.22660299,95837.0,95835.0,0.009]